{"text_format":"1","workbook":"xlsx","n_sheets":12,"sheets":["Order form cover page","1 Basic Lamella","2 Corner Lamella","3 Special Lamella","4 Support studs","5 Vertical j. flashings","6 Flashings","7 Other flashings","8 Screws and other acc.","9 Flat sheets","Translation","Data"],"not_rendered":{"charts":0,"images":75,"macros":1,"external_links":0,"defined_names":29,"comments":0,"pivot_tables":0},"unopened":[],"bounds":{"document_bytes":16777216,"sheet_cells":100000,"rows_first":2000,"rows_last":500,"rows_between":2000,"halvings":0,"cell_chars":16384,"cell_head_chars":4096},"cells_cut":0,"cells_raw":0,"read":"whole","date_system":"1900"}

{"sheet":"Order form cover page","index":0,"n_rows":41,"n_cols":17,"rows_kept":41,"cut":false,"hidden":false,"merged":[[24,11,24,14],[23,0,23,1],[23,5,23,8],[30,5,31,7],[29,5,29,7],[20,4,20,7],[19,8,20,9],[19,11,19,14],[20,11,20,14],[35,1,35,4],[27,8,27,11],[29,8,29,11],[31,8,31,11],[33,8,33,11],[27,1,27,4],[29,1,29,4],[31,1,31,4],[33,1,33,4],[35,8,35,11],[9,0,11,0],[12,11,12,14],[13,11,13,14],[10,6,10,9],[9,5,11,5],[11,1,11,4],[12,1,12,4],[13,1,13,4],[15,0,15,2],[11,11,11,14],[7,20,7,24],[7,11,7,14],[3,2,3,9],[3,10,3,14],[6,10,6,11],[6,2,6,4],[6,7,6,9],[6,12,6,14],[42,0,42,14],[21,7,21,8],[21,9,21,10],[23,9,23,10],[21,11,21,13],[22,11,22,13],[22,2,22,4],[22,6,22,9],[22,0,22,1],[21,0,21,1],[40,0,41,1],[40,2,40,14],[41,2,41,14],[25,0,25,6],[23,11,23,14],[24,5,24,8],[0,0,2,3],[0,4,0,6],[0,7,0,9],[0,10,0,12],[0,13,0,14],[1,4,2,6],[1,7,1,9],[1,10,2,12],[1,13,2,14],[2,7,2,9],[3,0,3,1],[6,0,6,1],[6,5,6,6],[5,5,5,9],[5,10,5,14],[5,0,5,4],[4,0,4,1],[4,2,4,14],[7,0,8,0],[8,11,8,14],[7,5,8,5],[8,6,8,9],[7,6,7,9],[7,1,7,4],[7,10,8,10],[8,1,8,4],[18,0,18,2],[18,3,18,7],[18,8,18,9],[18,10,18,14],[19,4,19,7],[19,0,20,2],[9,10,11,10],[9,11,9,14],[10,11,10,14],[16,0,16,2],[16,3,16,9],[17,3,17,14],[12,6,12,9],[13,6,13,9],[14,6,14,9],[9,1,9,4],[11,6,11,9],[10,1,10,4],[9,6,9,9],[17,0,17,2],[16,10,16,14],[14,11,14,14],[15,10,15,14],[14,1,14,4]]}
[null,null,null,null,"LAMELLA",null,null,"Select product",null,null,"Ruukki SAP order no.",null,null,"Date"]
[null,null,null,null,"ORDER FORM",null,null,"Language"]
[null,null,null,null,null,null,null,"English"]
["Send to:",null," cladding.orders@ruukki.com",null,null,null,null,null,null,null,"Italic underlined = mandatory information"]
["BUYER"]
["SHIP-TO PARTY (DELIVERY ADDRESS)",null,null,null,null,"BUYER",null,null,null,null,"BILL-TO PARTY (INVOICING CUSTOMER)"]
["Customer no.",null,null,null,null,"Customer no.",null,null,null,null,"Customer no."]
["Name",null,null,null,null,"Name",null,null,null,null,"Name"]
[]
["Address",null,null,null,null,"Address",null,null,null,null,"Address"]
[null,null,null,null,null,null,null,null,null,null,null,null,null,null,null,null,"Change log"]
[null,null,null,null,null,null,null,null,null,null,null,null,null,null,null,null,"v2.3"]
["Person",null,null,null,null,"Person",null,null,null,null,"Person",null,null,null,null,null,"- new translation module (no resetting of the whole workbook)"]
["Tel.",null,null,null,null,"Tel.",null,null,null,null,"Tel.",null,null,null,null,null,"- faster product selection module (optimized cycles)"]
["email",null,null,null,null,"email",null,null,null,null,"email",null,null,null,null,null,"- new buttons"]
["ORDER INFORMATION",null,null,null,null,null,null,null,null,null,"Short project name (3-10 characters)",null,null,null,null,null,"- combined corten and hiarc sheets"]
["PO no./ project",null,null,null,null,null,null,null,null,null,null,null,null,null,null,null,"v2.3.1"]
["Ruukki Sales ja CST person",null,null,null,null,null,null,null,null,null,null,null,null,null,null,null,"- added part id chekcer"]
["Wholesaler order nr",null,null,null,null,null,null,null,"Billing fee",null,null,null,null,null,null,null,"v2.3.2"]
["Extra order",null,null,"No",null,null,null,null,"Project-specific material ordered",null,"No",null,null,null,null,null,"- fixed product depths"]
[null,null,null,null,null,null,null,null,null,null,null,null,null,null,null,null,"v2.3.3"]
["TERMS",null,null,null,null,null,null,null,null,null,null,null,null,null,null,null,"- fixed volume calculation"]
["Delivery term",null,"Other",null,null,null,"_______________________",null,null,null,null,null,null,null,null,null,"v2.4"]
["Extra charges",null,"No",null,null,null,null,null,null,null,null,null,null,null,null,null,"- fixed support studs names"]
[null,null,null,null,null,null,null,null,null,null,null,null,null,null,null,null,"- fixed lang change error"]
["ATTACHED PRIMO AND ACCESSORY SPECIFICATIONS",null,null,null,null,null,null,null,null,null,null,null,null,null,null,null,"v2.4.1"]
[null,null,null,null,null,null,null,null,null,null,null,null,null,null,null,null,"- removed holes from grooves"]
[null,"1 Basic Lamella",null,null,null,null,null,null,"6 Flashings",null,null,null,null,null,null,null,"v2.4.2"]
[null,null,null,null,null,null,null,null,null,null,null,null,null,null,null,null,"- updated lamella drawings"]
[null,"2 Corner Lamella",null,null,null,"▲▲▲",null,null,"7 Other flashings",null,null,null,null,null,null,null,"v2.4.3"]
[null,null,null,null,null,"Select product to continue",null,null,null,null,null,null,null,null,null,null,"- updated lamella corner drawings"]
[null,"3 Special Lamella",null,null,null,null,null,null,"8 Screws and other acc.",null,null,null,null,null,null,null,"v2.4.4"]
[null,null,null,null,null,null,null,null,null,null,null,null,null,null,null,null,"-updated sym perfo"]
[null,"4 Support studs",null,null,null,null,null,null,"9 Flat sheets",null,null,null,null,null,null,null,"v2.4.5"]
[null,null,null,null,null,null,null,null,null,null,null,null,null,null,null,null,"-fixed translation error"]
[null,"5 Vertical j. flashings",null,null,null,null,null,null,null,null,null,null,null,null,null,null,"v2.5"]
[null,null,null,null,null,null,null,null,null,null,null,null,null,null,null,null,"- Hiarc -> Pural"]
[null,null,null,null,null,null,null,null,null,null,null,null,null,null,null,null,"- Al PVDF coating -> DG5000"]
[null,null,null,null,null,null,null,null,null,null,null,null,null,null,null,null,"- email address changed"]
[]
["NOTE"]

{"sheet":"1 Basic Lamella","index":1,"n_rows":51,"n_cols":16,"rows_kept":51,"cut":false,"hidden":true,"merged":[[16,11,16,12],[17,11,17,12],[18,11,18,12],[19,11,19,12],[20,11,20,12],[21,11,21,12],[22,11,22,12],[23,11,23,12],[24,11,24,12],[48,8,48,10],[44,8,44,10],[45,8,45,10],[46,8,46,10],[30,8,30,10],[31,8,31,10],[25,11,25,12],[26,11,26,12],[27,11,27,12],[28,11,28,12],[29,11,29,12],[30,11,30,12],[36,8,36,10],[37,8,37,10],[38,8,38,10],[45,11,45,12],[46,11,46,12],[47,11,47,12],[36,11,36,12],[37,11,37,12],[38,11,38,12],[39,11,39,12],[40,11,40,12],[31,11,31,12],[24,8,24,10],[25,8,25,10],[34,8,34,10],[35,8,35,10],[47,8,47,10],[41,11,41,12],[42,11,42,12],[39,8,39,10],[40,8,40,10],[41,8,41,10],[42,8,42,10],[32,11,32,12],[33,11,33,12],[34,11,34,12],[35,11,35,12],[48,11,48,12],[44,11,44,12],[8,10,9,12],[11,3,11,6],[11,7,11,9],[11,2,12,2],[11,10,12,12],[43,8,43,10],[43,11,43,12],[14,8,14,10],[14,11,14,12],[15,8,15,10],[15,11,15,12],[19,8,19,10],[20,8,20,10],[26,8,26,10],[32,8,32,10],[33,8,33,10],[27,8,27,10],[28,8,28,10],[29,8,29,10],[21,8,21,10],[22,8,22,10],[23,8,23,10],[0,7,0,9],[0,11,0,12],[1,11,2,12],[1,4,2,9],[6,10,7,12],[4,11,4,12],[5,11,5,12],[6,7,6,9],[6,0,6,1],[4,3,4,6],[5,3,5,6],[4,8,4,9],[5,8,5,9],[7,7,7,9],[4,0,4,2],[5,0,5,2],[6,2,6,6],[9,0,9,1],[9,2,9,3],[9,4,9,6],[0,0,2,3],[0,4,0,6],[7,2,7,6],[16,8,16,10],[17,8,17,10],[18,8,18,10],[12,0,12,1],[11,0,11,1],[12,3,12,6],[12,7,12,9],[8,0,8,1],[10,7,10,9],[10,10,10,12],[10,0,10,1],[10,2,10,3],[10,4,10,6],[8,4,8,6],[8,2,8,3],[9,7,9,9],[8,7,8,9],[7,0,7,1]]}
[null,null,null,null,"LAMELLA",null,null,"Select product",null,null,null,"Date"]
[null,null,null,null,"Lamella specification - Basic Lamella"]
[]
[]
["Ruukki SAP order no.",null,null,null,null,null,null,"Material","<Select option>"]
["PO no./ project"]
["Extra order",null,null,null,null,null,null,"Fastening holes"]
[null,null,null,null,null,null,null,"No fastening holes"]
[null,null,null,null,null,null,null,"Perforation options"]
[null,null,null,null,null,null,null,"No perforation"]
[]
["Price €/m²",null,"Sizes",null,null,null,null,null,null,null,"For further info please refer to product size table"]
["__________"]
[]
["ITEM","A","B",null,null,null,"Amount ","Part ID","NOTE",null,null,"Packing info"]
["Example",2500,500,null,null,null,"5","SW01","drawing SW00",null,null,"East wall",null,"m² / pc"]
[1,null,null,null,null,null,null,null,null,null,null,null,null,{"$f":"B17*C17/10^6","v":0},{"$f":"N17*G17","v":0}]
[2,null,null,null,null,null,null,null,null,null,null,null,null,{"$f":"B18*C18/10^6","v":0},{"$f":"N18*G18","v":0}]
[3,null,null,null,null,null,null,null,null,null,null,null,null,0,0]
[4,null,null,null,null,null,null,null,null,null,null,null,null,0,0]
[5,null,null,null,null,null,null,null,null,null,null,null,null,0,0]
[6,null,null,null,null,null,null,null,null,null,null,null,null,0,0]
[7,null,null,null,null,null,null,null,null,null,null,null,null,0,0]
[8,null,null,null,null,null,null,null,null,null,null,null,null,0,0]
[9,null,null,null,null,null,null,null,null,null,null,null,null,0,0]
[10,null,null,null,null,null,null,null,null,null,null,null,null,0,0]
[11,null,null,null,null,null,null,null,null,null,null,null,null,0,0]
[12,null,null,null,null,null,null,null,null,null,null,null,null,0,0]
[13,null,null,null,null,null,null,null,null,null,null,null,null,0,0]
[14,null,null,null,null,null,null,null,null,null,null,null,null,0,0]
[15,null,null,null,null,null,null,null,null,null,null,null,null,0,0]
[16,null,null,null,null,null,null,null,null,null,null,null,null,0,0]
[17,null,null,null,null,null,null,null,null,null,null,null,null,0,0]
[18,null,null,null,null,null,null,null,null,null,null,null,null,0,0]
[19,null,null,null,null,null,null,null,null,null,null,null,null,0,0]
[20,null,null,null,null,null,null,null,null,null,null,null,null,0,0]
[21,null,null,null,null,null,null,null,null,null,null,null,null,0,0]
[22,null,null,null,null,null,null,null,null,null,null,null,null,0,0]
[23,null,null,null,null,null,null,null,null,null,null,null,null,0,0]
[24,null,null,null,null,null,null,null,null,null,null,null,null,0,0]
[25,null,null,null,null,null,null,null,null,null,null,null,null,0,0]
[26,null,null,null,null,null,null,null,null,null,null,null,null,0,0]
[27,null,null,null,null,null,null,null,null,null,null,null,null,0,0]
[28,null,null,null,null,null,null,null,null,null,null,null,null,{"$f":"B44*C44/10^6","v":0},0]
[29,null,null,null,null,null,null,null,null,null,null,null,null,0,0]
[30,null,null,null,null,null,null,null,null,null,null,null,null,0,0]
[31,null,null,null,null,null,null,null,null,null,null,null,null,0,0]
[32,null,null,null,null,null,null,null,null,null,null,null,null,0,0]
[33,null,null,null,null,null,null,null,null,null,null,null,null,0,0]
[]
[null,null,null,null,null,null,null,null,null,null,null,null,null,null,{"$f":"SUM(O17:O49)","v":0},"m²"]

{"sheet":"2 Corner Lamella","index":2,"n_rows":51,"n_cols":16,"rows_kept":51,"cut":false,"hidden":true,"merged":[[46,8,46,10],[46,11,46,12],[47,8,47,10],[47,11,47,12],[48,8,48,10],[48,11,48,12],[40,8,40,10],[40,11,40,12],[41,8,41,10],[41,11,41,12],[42,8,42,10],[42,11,42,12],[44,8,44,10],[44,11,44,12],[45,8,45,10],[45,11,45,12],[37,8,37,10],[37,11,37,12],[38,8,38,10],[38,11,38,12],[39,8,39,10],[39,11,39,12],[34,8,34,10],[34,11,34,12],[35,8,35,10],[35,11,35,12],[36,8,36,10],[36,11,36,12],[10,10,10,12],[8,10,9,12],[0,0,2,3],[0,4,0,6],[0,7,0,9],[0,11,0,12],[1,4,2,9],[1,11,2,12],[6,7,6,9],[6,10,7,12],[6,0,6,1],[7,2,7,6],[7,7,7,9],[7,0,7,1],[6,2,6,6],[4,8,4,9],[5,8,5,9],[4,0,4,2],[4,3,4,6],[5,0,5,2],[5,3,5,6],[4,11,4,12],[5,11,5,12],[11,0,11,1],[8,2,8,3],[8,4,8,6],[12,0,12,1],[9,4,9,6],[9,7,9,9],[10,0,10,1],[10,2,10,3],[10,4,10,6],[10,7,10,9],[11,2,12,2],[11,3,11,6],[11,7,11,9],[8,0,8,1],[8,7,8,9],[12,3,12,6],[12,7,12,9],[9,0,9,1],[9,2,9,3],[31,8,31,10],[31,11,31,12],[32,8,32,10],[32,11,32,12],[15,11,15,12],[16,8,16,10],[16,11,16,12],[17,8,17,10],[17,11,17,12],[23,11,23,12],[24,8,24,10],[24,11,24,12],[25,8,25,10],[25,11,25,12],[26,8,26,10],[26,11,26,12],[27,8,27,10],[28,8,28,10],[28,11,28,12],[11,10,12,12],[14,8,14,10],[14,11,14,12],[15,8,15,10],[23,8,23,10],[33,8,33,10],[33,11,33,12],[43,8,43,10],[43,11,43,12],[27,11,27,12],[18,8,18,10],[18,11,18,12],[19,8,19,10],[19,11,19,12],[20,8,20,10],[20,11,20,12],[21,8,21,10],[21,11,21,12],[22,8,22,10],[22,11,22,12],[29,8,29,10],[29,11,29,12],[30,8,30,10],[30,11,30,12]]}
[null,null,null,null,"LAMELLA",null,null,"Select product",null,null,null,"Date"]
[null,null,null,null,"Lamella specification - Corner Lamella"]
[]
[]
["Ruukki SAP order no.",null,null,null,null,null,null,"Material","<Select option>"]
["PO no./ project"]
["Main order",null,null,null,null,null,null,"Fastening holes"]
[null,null,null,null,null,null,null,"No fastening holes"]
[null,null,null,null,null,null,null,"Perforation options"]
[null,null,null,null,null,null,null,"No perforation"]
[]
["Price €/m²",null,"Sizes",null,null,null,null,null,null,null,"For further info please refer to product size table"]
["__________"]
[]
["ITEM","A","B","Type",null,null,"Amount ","Part ID","NOTE",null,null,"Packing info"]
["Example","2500","500","A",null,null,"5","SW01","drawing SW00",null,null,"East wall",null,"m² / pc"]
[1,null,null,null,null,null,null,null,null,null,null,null,null,{"$f":"(B17+C17)/10^6","v":0},{"$f":"N17*G17","v":0}]
[2,null,null,null,null,null,null,null,null,null,null,null,null,{"$f":"(B18+C18)/10^6","v":0},{"$f":"N18*G18","v":0}]
[3,null,null,null,null,null,null,null,null,null,null,null,null,0,0]
[4,null,null,null,null,null,null,null,null,null,null,null,null,0,0]
[5,null,null,null,null,null,null,null,null,null,null,null,null,0,0]
[6,null,null,null,null,null,null,null,null,null,null,null,null,0,0]
[7,null,null,null,null,null,null,null,null,null,null,null,null,0,0]
[8,null,null,null,null,null,null,null,null,null,null,null,null,0,0]
[9,null,null,null,null,null,null,null,null,null,null,null,null,0,0]
[10,null,null,null,null,null,null,null,null,null,null,null,null,0,0]
[11,null,null,null,null,null,null,null,null,null,null,null,null,0,0]
[12,null,null,null,null,null,null,null,null,null,null,null,null,0,0]
[13,null,null,null,null,null,null,null,null,null,null,null,null,0,0]
[14,null,null,null,null,null,null,null,null,null,null,null,null,0,0]
[15,null,null,null,null,null,null,null,null,null,null,null,null,0,0]
[16,null,null,null,null,null,null,null,null,null,null,null,null,0,0]
[17,null,null,null,null,null,null,null,null,null,null,null,null,0,0]
[18,null,null,null,null,null,null,null,null,null,null,null,null,0,0]
[19,null,null,null,null,null,null,null,null,null,null,null,null,0,0]
[20,null,null,null,null,null,null,null,null,null,null,null,null,0,0]
[21,null,null,null,null,null,null,null,null,null,null,null,null,0,0]
[22,null,null,null,null,null,null,null,null,null,null,null,null,0,0]
[23,null,null,null,null,null,null,null,null,null,null,null,null,0,0]
[24,null,null,null,null,null,null,null,null,null,null,null,null,0,0]
[25,null,null,null,null,null,null,null,null,null,null,null,null,0,0]
[26,null,null,null,null,null,null,null,null,null,null,null,null,0,0]
[27,null,null,null,null,null,null,null,null,null,null,null,null,0,0]
[28,null,null,null,null,null,null,null,null,null,null,null,null,0,0]
[29,null,null,null,null,null,null,null,null,null,null,null,null,0,0]
[30,null,null,null,null,null,null,null,null,null,null,null,null,0,0]
[31,null,null,null,null,null,null,null,null,null,null,null,null,0,0]
[32,null,null,null,null,null,null,null,null,null,null,null,null,0,0]
[33,null,null,null,null,null,null,null,null,null,null,null,null,0,0]
[]
[null,null,null,null,null,null,null,null,null,null,null,null,null,null,{"$f":"SUM(O17:O49)","v":0},"m²"]

{"sheet":"3 Special Lamella","index":3,"n_rows":54,"n_cols":12,"rows_kept":54,"cut":false,"hidden":true,"merged":[[53,8,53,10],[53,11,53,12],[50,8,50,10],[50,11,50,12],[51,8,51,10],[51,11,51,12],[52,8,52,10],[52,11,52,12],[47,8,47,10],[47,11,47,12],[48,8,48,10],[48,11,48,12],[49,8,49,10],[49,11,49,12],[44,8,44,10],[44,11,44,12],[45,8,45,10],[45,11,45,12],[46,8,46,10],[46,11,46,12],[41,8,41,10],[41,11,41,12],[42,8,42,10],[42,11,42,12],[43,8,43,10],[43,11,43,12],[38,8,38,10],[38,11,38,12],[39,8,39,10],[39,11,39,12],[40,8,40,10],[40,11,40,12],[35,8,35,10],[35,11,35,12],[36,8,36,10],[36,11,36,12],[37,8,37,10],[37,11,37,12],[32,8,32,10],[32,11,32,12],[33,8,33,10],[33,11,33,12],[34,8,34,10],[34,11,34,12],[29,8,29,10],[29,11,29,12],[30,8,30,10],[30,11,30,12],[31,8,31,10],[31,11,31,12],[26,8,26,10],[26,11,26,12],[27,8,27,10],[27,11,27,12],[28,8,28,10],[28,11,28,12],[23,8,23,10],[23,11,23,12],[24,8,24,10],[24,11,24,12],[25,8,25,10],[25,11,25,12],[21,8,21,10],[21,11,21,12],[22,8,22,10],[22,11,22,12],[17,11,17,12],[18,8,18,10],[18,11,18,12],[19,8,19,10],[19,11,19,12],[17,8,17,10],[0,0,2,3],[0,4,0,6],[0,7,0,9],[0,11,0,12],[1,4,2,9],[1,11,2,12],[4,8,4,9],[5,8,5,9],[20,8,20,10],[20,11,20,12],[12,7,12,9],[12,3,12,6],[6,7,6,9],[4,0,4,2],[4,3,4,6],[5,0,5,2],[5,3,5,6],[8,7,8,9],[8,10,9,12],[8,0,8,1],[8,2,8,3],[8,4,8,6],[9,7,9,9],[9,0,9,1],[9,2,9,3],[9,4,9,6],[6,10,7,12],[6,0,6,1],[6,2,6,6],[7,7,7,9],[7,0,7,1],[7,2,7,6],[4,11,4,12],[5,11,5,12],[10,0,10,6],[10,7,10,9],[10,10,10,12],[14,8,14,10],[14,11,14,12],[15,8,15,10],[15,11,15,12],[16,8,16,10],[11,10,12,12],[13,0,13,12],[11,0,11,1],[12,0,12,1],[11,2,12,2],[11,3,11,6],[11,7,11,9],[16,11,16,12]]}
[null,null,null,null,"LAMELLA",null,null,"Select product",null,null,null,"Date"]
[null,null,null,null,"Lamella specification - Special Lamella"]
[]
[]
["Ruukki SAP order no.",null,null,null,null,null,null,"Material","<Select option>"]
["PO no./ project"]
["Main order",null,null,null,null,null,null,"Fastening holes"]
[null,null,null,null,null,null,null,"Standard hole pattern"]
[null,null,null,null,null,null,null,"Perforation options"]
[null,null,null,null,null,null,null,"No perforation"]
[]
["Price €/m²",null,"Sizes",null,null,null,null,null,null,null,"For further info please refer to product size table"]
["___________"]
[]
["ITEM","A","B","C","D",null,"Amount ","Part ID","NOTE",null,null,"Packing info"]
["Example","2500","500",30,15,null,"5","SW01","drawing SW00",null,null,"East wall"]
[1]
[2]
[3]
[4]
[5]
[6]
[7]
[8]
[9]
[10]
[11]
[12]
[13]
[14]
[15]
[16]
[17]
[18]
[19]
[20]
[21]
[22]
[23]
[24]
[25]
[26]
[27]
[28]
[29]
[30]
[31]
[32]
[33]
[34]
[35]
[36]
[37]
[38]

{"sheet":"4 Support studs","index":4,"n_rows":52,"n_cols":15,"rows_kept":52,"cut":false,"hidden":true,"merged":[[50,1,50,2],[50,3,50,4],[50,8,50,9],[50,10,50,11],[51,0,52,0],[51,1,52,6],[51,7,52,7],[51,8,52,13],[49,1,49,2],[49,3,49,4],[49,8,49,9],[49,10,49,11],[48,0,48,4],[48,7,48,11],[23,7,31,11],[39,0,47,4],[39,7,47,11],[37,0,37,13],[38,0,38,2],[38,3,38,4],[38,7,38,9],[38,10,38,11],[32,7,32,11],[32,0,32,4],[34,1,34,2],[34,3,34,4],[34,8,34,9],[34,10,34,11],[35,0,36,0],[35,1,36,6],[35,7,36,7],[35,8,36,13],[33,1,33,2],[33,3,33,4],[33,8,33,9],[33,10,33,11],[23,0,31,4],[22,0,22,2],[22,3,22,4],[19,0,20,0],[19,1,20,6],[19,7,20,7],[19,8,20,13],[21,0,21,13],[22,7,22,9],[22,10,22,11],[18,10,18,11],[17,3,17,4],[17,10,17,11],[7,0,15,4],[7,7,15,11],[16,0,16,4],[17,1,17,2],[18,3,18,4],[18,1,18,2],[17,8,17,9],[18,8,18,9],[6,0,6,2],[6,3,6,4],[6,7,6,9],[6,10,6,11],[16,7,16,11],[0,11,0,13],[1,11,2,13],[5,0,5,13],[4,0,4,2],[4,3,4,6],[0,0,2,3],[0,4,0,6],[0,7,0,9],[4,7,4,9],[4,10,4,13],[1,4,2,10]]}
[null,null,null,null,"LAMELLA",null,null,"Select product",null,null,null,"Date"]
[null,null,null,null,"Accessory specification - Support studs"]
[]
[]
["Ruukki SAP order no.",null,null,null,null,null,null,"PO no./ project"]
[]
["Support stud",null,null,"CA1SS1",null,"Length","Amount ","Support stud",null,null,"CA1SS2",null,"Length","Amount "]
[null,null,null,null,null,"(mm)","(pcs)",null,null,null,null,null,"(mm)","(pcs)"]
[]
[null,null,null,null,null,null,null,null,null,null,null,null,null,null," "]
[]
[]
[]
[]
[]
[]
["<Select option>",null,null,null,null,null,null,"<Select option>"]
[]
[]
["NOTE",null,null,null,null,null,null,"NOTE"]
[]
[]
["Support stud",null,null,"CA1RS1",null,"Length","Amount ","Support stud",null,null,"CA1SSC1",null,"Length","Amount "]
[null,null,null,null,null,"(mm)","(pcs)",null,null,null,null,null,"(mm)","(pcs)"]
[]
[]
[]
[]
[]
[]
[]
[]
["<Select option>",null,null,null,null,null,null,"<Select option>"]
[]
[]
["NOTE",null,null,null,null,null,null,"NOTE"]
[]
[]
["Other",null,null,"_______",null,"Length","Amount ","Other",null,null,"_______",null,"Length","Amount "]
[null,null,null,null,null,"(mm)","(pcs)",null,null,null,null,null,"(mm)","(pcs)"]
[]
[]
[]
[]
[]
[]
[]
[]
["<Select option>",null,null,null,null,null,null,"<Select option>"]
[]
[]
["NOTE",null,null,null,null,null,null,"NOTE"]

{"sheet":"5 Vertical j. flashings","index":5,"n_rows":56,"n_cols":12,"rows_kept":56,"cut":false,"hidden":true,"merged":[[50,7,50,13],[51,0,60,6],[51,7,51,10],[51,11,51,13],[53,8,53,9],[53,10,53,11],[60,9,60,13],[52,8,52,9],[52,10,52,11],[54,9,54,13],[55,9,55,13],[56,9,56,13],[57,9,57,13],[58,9,58,13],[59,9,59,13],[50,0,50,3],[50,4,50,6],[7,0,16,6],[40,0,49,6],[40,7,40,10],[40,11,40,13],[41,8,41,9],[17,0,17,3],[28,0,28,3],[39,0,39,3],[17,4,17,6],[28,4,28,6],[39,4,39,6],[18,0,27,6],[47,9,47,13],[48,9,48,13],[49,9,49,13],[46,9,46,13],[28,7,28,13],[42,8,42,9],[42,10,42,11],[43,9,43,13],[44,9,44,13],[38,9,38,13],[45,9,45,13],[30,10,30,11],[41,10,41,11],[39,7,39,13],[29,0,38,6],[29,7,29,10],[29,11,29,13],[30,8,30,9],[31,8,31,9],[31,10,31,11],[32,9,32,13],[33,9,33,13],[34,9,34,13],[35,9,35,13],[36,9,36,13],[37,9,37,13],[18,7,18,10],[18,11,18,13],[19,8,19,9],[20,8,20,9],[20,10,20,11],[19,10,19,11],[21,9,21,13],[22,9,22,13],[23,9,23,13],[24,9,24,13],[25,9,25,13],[26,9,26,13],[27,9,27,13],[17,7,17,13],[7,7,7,10],[7,11,7,13],[8,8,8,9],[9,8,9,9],[9,10,9,11],[10,9,10,13],[11,9,11,13],[12,9,12,13],[13,9,13,13],[14,9,14,13],[15,9,15,13],[16,9,16,13],[8,10,8,11],[6,7,6,13],[0,0,2,3],[0,4,0,6],[0,7,0,9],[0,11,0,13],[1,11,2,13],[4,0,4,2],[4,3,4,6],[5,0,5,13],[6,0,6,3],[6,4,6,6],[4,7,4,9],[4,10,4,13],[1,4,2,10]]}
[null,null,null,null,"LAMELLA",null,null,"Select product",null,null,null,"Date"]
[null,null,null,null,"Accessory specification - Vertical joint flashings"]
[]
[]
["Ruukki SAP order no.",null,null,null,null,null,null,"PO no./ project"]
[]
["Vertical joint flashing",null,null,null,"CA1VJ2",null,null,"MATERIALS, COATINGS AND COLOURS"]
[null,null,null,null,null,null,null,"<Select option>"]
[]
[]
[null,null,null,null,null,null,null,"Length","Amount ","NOTE"]
[null,null,null,null,null,null,null,"(mm)","(pcs)"]
[]
[]
[]
[]
[]
["Vertical joint flashing",null,null,null,"CA1VJ6",null,null,"MATERIALS, COATINGS AND COLOURS"]
[null,null,null,null,null,null,null,"<Select option>"]
[]
[]
[null,null,null,null,null,null,null,"Length","Amount ","NOTE"]
[null,null,null,null,null,null,null,"(mm)","(pcs)"]
[]
[]
[]
[]
[]
["Vertical joint flashing",null,null,null,"CA1VJ8",null,null,"MATERIALS, COATINGS AND COLOURS"]
[null,null,null,null,null,null,null,"<Select option>"]
[]
[]
[null,null,null,null,null,null,null,"Length","Amount ","NOTE"]
[null,null,null,null,null,null,null,"(mm)","(pcs)"]
[]
[]
[]
[]
[]
["Vertical joint flashing",null,null,null,"CA1VJ14",null,null,"MATERIALS, COATINGS AND COLOURS"]
[null,null,null,null,null,null,null,"<Select option>"]
[]
[]
[null,null,null,null,null,null,null,"Length","Amount ","NOTE"]
[null,null,null,null,null,null,null,"(mm)","(pcs)"]
[]
[]
[]
[]
[]
["Vertical joint flashing",null,null,null,"_________",null,null,"MATERIALS, COATINGS AND COLOURS"]
[null,null,null,null,null,null,null,"<Select option>"]
[]
[]
[null,null,null,null,null,null,null,"Length","Amount ","NOTE"]
[null,null,null,null,null,null,null,"(mm)","(pcs)"]

{"sheet":"6 Flashings","index":6,"n_rows":56,"n_cols":14,"rows_kept":56,"cut":false,"hidden":true,"merged":[[19,10,19,11],[30,10,30,11],[41,10,41,11],[52,10,52,11],[49,0,49,6],[20,10,20,11],[31,10,31,11],[42,10,42,11],[21,10,22,10],[21,11,22,11],[29,0,37,6],[31,8,31,9],[29,7,29,10],[29,11,29,13],[30,8,30,9],[32,11,33,11],[9,10,9,11],[39,0,39,3],[39,4,39,6],[39,7,39,13],[40,0,48,6],[40,7,40,10],[40,11,40,13],[41,8,41,9],[42,8,42,9],[43,9,44,9],[43,10,44,10],[38,0,38,6],[43,11,44,11],[43,12,44,12],[43,13,44,13],[21,9,22,9],[21,12,22,12],[21,13,22,13],[28,7,28,13],[6,0,6,3],[17,0,17,3],[28,0,28,3],[6,4,6,6],[17,4,17,6],[28,4,28,6],[9,8,9,9],[10,9,11,9],[10,10,11,10],[10,11,11,11],[10,12,11,12],[10,13,11,13],[6,7,6,13],[32,9,33,9],[32,10,33,10],[32,12,33,12],[32,13,33,13],[7,0,15,6],[16,0,16,6],[27,0,27,6],[18,0,26,6],[20,8,20,9],[17,7,17,13],[18,7,18,10],[18,11,18,13],[19,8,19,9],[7,7,7,10],[7,11,7,13],[8,8,8,9],[4,0,4,2],[4,3,4,6],[5,0,5,13],[4,7,4,9],[4,10,4,13],[0,0,2,3],[0,4,0,6],[0,7,0,9],[0,11,0,13],[1,11,2,13],[1,4,2,10],[8,10,8,11],[60,0,60,6],[50,0,50,3],[50,4,50,6],[50,7,50,13],[51,0,59,6],[51,7,51,10],[51,11,51,13],[52,8,52,9],[53,8,53,9],[53,10,53,11],[54,9,55,9],[54,10,55,10],[54,11,55,11],[54,12,55,12],[54,13,55,13]]}
[null,null,null,null,"LAMELLA",null,null,"Select product",null,null,null,"Date"]
[null,null,null,null,"Accessory specification - Flashings"]
[]
[]
["Ruukki SAP order no.",null,null,null,null,null,null,"PO no./ project"]
[]
["External corner flashing",null,null,null,"CA1EC1X",null,null,"MATERIALS, COATINGS AND COLOURS"]
[null,null,null,null,null,null,null,"<Select option>"]
[]
[]
[null,null,null,null,null,null,null,"Length","Amount ","A","B",null,null,"NOTE"]
[null,null,null,null,null,null,null,"(mm)","pcs"]
[]
[]
[]
[]
[]
["External corner flashing",null,null,null,"CA1EC6",null,null,"MATERIALS, COATINGS AND COLOURS"]
[null,null,null,null,null,null,null,"<Select option>"]
[]
[]
[null,null,null,null,null,null,null,"Length","Amount ","A","B",null,null,"NOTE"]
[null,null,null,null,null,null,null,"(mm)","pcs"]
[]
[]
[]
[]
[]
["External corner flashing",null,null,null,"CA1E13",null,null,"MATERIALS, COATINGS AND COLOURS"]
[null,null,null,null,null,null,null,"<Select option>"]
[]
[]
[null,null,null,null,null,null,null,"Length","Amount ","A","B",null,null,"NOTE"]
[null,null,null,null,null,null,null,"(mm)","pcs"]
[]
[]
[]
[]
[]
["Internal corner flashing",null,null,null,"CA1IC2X",null,null,"MATERIALS, COATINGS AND COLOURS"]
[null,null,null,null,null,null,null,"<Select option>"]
[]
[]
[null,null,null,null,null,null,null,"Length","Amount ","A","B","C",null,"NOTE"]
[null,null,null,null,null,null,null,"(mm)","pcs"]
[]
[]
[]
[]
["Add the dimensions marked with letters into the notes"]
["Internal corner flashing",null,null,null,"CA1IC6",null,null,"MATERIALS, COATINGS AND COLOURS"]
[null,null,null,null,null,null,null,"<Select option>"]
[]
[]
[null,null,null,null,null,null,null,"Length","Amount ","A","B",null,null,"NOTE"]
[null,null,null,null,null,null,null,"(mm)","pcs"]

{"sheet":"7 Other flashings","index":7,"n_rows":45,"n_cols":14,"rows_kept":45,"cut":false,"hidden":true,"merged":[[39,0,39,2],[39,3,39,6],[38,0,38,13],[39,7,39,13],[40,0,49,6],[43,9,44,9],[43,10,44,10],[43,11,44,11],[43,12,44,12],[43,13,44,13],[40,7,40,10],[40,11,40,13],[41,8,41,9],[41,10,41,11],[42,8,42,9],[42,10,42,11],[0,0,2,3],[0,4,0,6],[0,7,0,9],[0,11,0,13],[1,4,2,9],[1,11,2,13],[4,0,4,2],[4,3,4,6],[5,0,5,13],[4,7,4,9],[4,10,4,13],[6,7,6,13],[6,0,6,2],[6,3,6,6],[10,9,11,9],[10,10,11,10],[10,11,11,11],[10,12,11,12],[10,13,11,13],[16,0,16,13],[17,7,17,13],[17,0,17,2],[17,3,17,6],[7,0,15,6],[7,7,7,10],[7,11,7,13],[8,8,8,9],[8,10,8,11],[9,8,9,9],[9,10,9,11],[21,13,22,13],[18,7,18,10],[18,11,18,13],[19,8,19,9],[19,10,19,11],[20,8,20,9],[20,10,20,11],[18,0,26,6],[21,9,22,9],[21,10,22,10],[21,11,22,11],[21,12,22,12],[27,0,27,13],[28,7,28,13],[28,0,28,2],[28,3,28,6],[32,13,33,13],[29,0,37,6],[31,10,31,11],[29,7,29,10],[29,11,29,13],[30,8,30,9],[30,10,30,11],[31,8,31,9],[56,11,56,12],[57,11,57,12],[58,11,58,12],[54,11,54,12],[55,11,55,12],[51,11,51,12],[52,11,52,12],[53,11,53,12],[32,9,33,9],[32,10,33,10],[32,11,33,11],[32,12,33,12]]}
[null,null,null,null,"LAMELLA",null,null,"Select product",null,null,null,"Date"]
[null,null,null,null,"Accessory specification - Other flashings"]
[]
[]
["Ruukki SAP order no.",null,null,null,null,null,null,"PO no./ project"]
[]
["Other",null,null,"_______",null,null,null,"MATERIALS, COATINGS AND COLOURS"]
[null,null,null,null,null,null,null,"<Select option>"]
[]
[]
[null,null,null,null,null,null,null,"Length","Amount ","A","B","C","K","NOTE"]
[null,null,null,null,null,null,null,"(mm)","pcs"]
[]
[]
[]
[]
[]
["Other:",null,null,"____________",null,null,null,"MATERIALS, COATINGS AND COLOURS"]
[null,null,null,null,null,null,null,"<Select option>"]
[]
[]
[null,null,null,null,null,null,null,"Length","Amount ","A","B","C","K","NOTE"]
[null,null,null,null,null,null,null,"(mm)","pcs"]
[]
[]
[]
[]
[]
["Other:",null,null,"____________",null,null,null,"MATERIALS, COATINGS AND COLOURS"]
[null,null,null,null,null,null,null,"<Select option>"]
[]
[]
[null,null,null,null,null,null,null,"Length","Amount ","A","B","C","K","NOTE"]
[null,null,null,null,null,null,null,"(mm)","pcs"]
[]
[]
[]
[]
[]
["Other:",null,null,"____________",null,null,null,"MATERIALS, COATINGS AND COLOURS"]
[null,null,null,null,null,null,null,"<Select option>"]
[]
[]
[null,null,null,null,null,null,null,"Length","Amount ","A","B","C","K","NOTE"]
[null,null,null,null,null,null,null,"(mm)","pcs"]

{"sheet":"8 Screws and other acc.","index":8,"n_rows":54,"n_cols":12,"rows_kept":54,"cut":false,"hidden":true,"merged":[[54,10,54,11],[55,10,55,11],[39,0,39,1],[36,0,36,4],[51,0,56,6],[38,0,38,6],[47,0,47,11],[48,0,48,6],[49,0,49,1],[48,7,48,11],[49,7,49,11],[49,2,49,6],[46,10,46,11],[40,7,40,11],[42,10,42,11],[56,10,56,11],[13,0,13,11],[8,9,8,11],[9,9,9,11],[10,9,10,11],[11,9,11,11],[12,9,12,11],[7,0,11,6],[12,0,12,4],[12,5,12,6],[1,11,2,11],[3,0,3,11],[7,7,7,11],[5,0,5,11],[6,7,6,11],[0,0,2,3],[0,4,0,6],[0,7,0,9],[4,0,4,2],[4,3,4,6],[6,3,6,6],[6,0,6,2],[4,7,4,9],[1,4,2,10],[4,10,4,11],[50,2,50,6],[50,0,50,1],[52,10,52,11],[53,10,53,11],[28,9,28,11],[28,5,28,6],[40,2,40,6],[39,7,39,11],[39,2,39,6],[38,7,38,11],[29,0,29,11],[37,0,37,11],[44,10,44,11],[41,0,46,6],[40,0,40,1],[45,10,45,11],[14,7,14,11],[21,0,21,11],[22,7,22,11],[23,7,23,11],[24,9,24,11],[23,0,27,6],[27,9,27,11],[18,9,18,11],[15,0,19,6],[17,9,17,11],[25,9,25,11],[26,9,26,11],[14,3,14,6],[14,0,14,2],[19,9,19,11],[15,7,15,11],[41,7,41,11],[31,0,35,6],[31,7,31,11],[43,10,43,11],[32,9,32,11],[33,9,33,11],[36,5,36,6],[36,9,36,11],[34,9,34,11],[35,9,35,11],[16,9,16,11],[28,0,28,4],[30,0,30,2],[30,3,30,6],[30,7,30,11],[20,5,20,6],[20,0,20,4],[22,0,22,2],[22,3,22,6],[20,9,20,11]]}
[null,null,null,null,"LAMELLA",null,null,"Select product",null,null,null,"Date"]
[null,null,null,null,"Accessory specification - Screws and other acc."]
[]
[]
["Ruukki SAP order no.",null,null,null,null,null,null,"PO no./ project"]
[]
["Screw",null,null,"S3H48022D02S4C",null,null,null,"MATERIALS, COATINGS AND COLOURS"]
[null,null,null,null,null,null,null,"<Select option>"]
[null,null,null,null,null,null,null,"Amount ",null,"NOTE"]
[null,null,null,null,null,null,null,"pcs"]
[]
[]
["Package size:",null,null,null,null,250]
[]
["Screw",null,null,"S3H55022L02S4B",null,null,null,"MATERIALS, COATINGS AND COLOURS"]
[null,null,null,null,null,null,null,"<Select option>"]
[null,null,null,null,null,null,null,"Amount ",null,"NOTE"]
[null,null,null,null,null,null,null,"pcs"]
[]
[]
["Package size:",null,null,null,null,100]
[]
["Other:",null,null,"__________",null,null,null,"MATERIALS, COATINGS AND COLOURS"]
[null,null,null,null,null,null,null,"<Select option>"]
[null,null,null,null,null,null,null,"Amount ",null,"NOTE"]
[null,null,null,null,null,null,null,"pcs"]
[]
[]
["Package size:"]
[]
["Other:",null,null,"__________",null,null,null,"MATERIALS, COATINGS AND COLOURS"]
[null,null,null,null,null,null,null,"<Select option>"]
[null,null,null,null,null,null,null,"Amount ",null,"NOTE"]
[null,null,null,null,null,null,null,"pcs"]
[]
[]
["Package size:"]
[]
["Other accessory",null,null,null,null,null,null,"MATERIALS, COATINGS AND COLOURS"]
["Part nr",null,null,null,null,null,null,"Material thickness / material / coating / colour"]
["Additional info"]
[]
[null,null,null,null,null,null,null,"Amount ","Length","Price","NOTE"]
[null,null,null,null,null,null,null,"pcs","(mm)"]
[]
[]
[]
[]
["Other accessory",null,null,null,null,null,null,"MATERIALS, COATINGS AND COLOURS"]
["Part nr",null,null,null,null,null,null,"Material thickness / material / coating / colour"]
["Additional info"]
[]
[null,null,null,null,null,null,null,"Amount ","Length","Price","NOTE"]
[null,null,null,null,null,null,null,"pcs","(mm)"]

{"sheet":"9 Flat sheets","index":9,"n_rows":46,"n_cols":12,"rows_kept":46,"cut":false,"hidden":true,"merged":[[4,7,4,9],[4,10,4,11],[22,0,22,2],[23,0,23,2],[33,0,33,2],[17,0,17,6],[12,10,12,11],[13,10,13,11],[14,10,14,11],[15,10,15,11],[18,7,18,11],[19,7,19,11],[20,7,20,11],[21,10,21,11],[22,10,22,11],[23,10,23,11],[34,0,34,2],[43,0,43,2],[29,0,32,2],[35,0,37,2],[24,0,26,2],[39,0,39,6],[40,0,42,2],[40,3,43,6],[38,0,38,11],[28,0,28,6],[37,10,37,11],[24,10,24,11],[32,10,32,11],[34,3,37,6],[23,3,26,6],[39,7,39,11],[5,13,9,19],[15,14,18,20],[11,0,11,2],[12,0,12,2],[7,3,11,6],[12,3,15,6],[7,0,10,2],[13,0,15,2],[18,3,22,6],[18,0,21,2],[16,0,16,11],[7,7,7,11],[8,7,8,11],[9,7,9,11],[10,10,10,11],[11,10,11,11],[45,0,48,2],[1,11,2,11],[3,0,3,11],[5,0,5,11],[6,7,6,11],[0,0,2,3],[0,4,0,6],[0,7,0,9],[1,4,2,9],[4,0,4,2],[4,3,4,6],[6,0,6,6],[27,0,27,11],[17,7,17,11],[44,0,44,2],[29,3,33,6],[44,3,48,6],[43,10,43,11],[44,10,44,11],[45,10,45,11],[25,10,25,11],[28,7,28,11],[29,7,29,11],[30,7,30,11],[31,7,31,11],[36,10,36,11],[48,10,48,11],[26,10,26,11],[33,10,33,11],[34,10,34,11],[35,10,35,11],[46,10,46,11],[56,11,56,12],[57,11,57,12],[58,11,58,12],[53,11,53,12],[54,11,54,12],[55,11,55,12],[40,7,40,11],[47,10,47,11],[51,11,51,12],[52,11,52,12],[41,7,41,11],[42,7,42,11]]}
[null,null,null,null,"LAMELLA",null,null,"Select product",null,null,null,"Date"]
[null,null,null,null,"Accessory specification - Flat sheets"]
[]
[]
["Ruukki SAP order no.",null,null,null,null,null,null,"PO no./ project"]
[]
["Flat sheets",null,null,null,null,null,null,"MATERIALS, COATINGS AND COLOURS"]
[null,null,null," 1000 mm",null,null,null,"Material thickness / material / coating / colour"]
[]
[]
[null,null,null,null,null,null,null,"Length","Amount ","€/m","NOTE"]
["Width:",null,null,null,null,null,null,"(mm)","pcs"]
["Typical lengths:",null,null,"2000, 3000, 4000, 5000 mm"]
[]
[]
[]
[]
["Flat sheets",null,null,null,null,null,null,"MATERIALS, COATINGS AND COLOURS"]
[null,null,null,"1250 mm",null,null,null,"Material thickness / material / coating / colour"]
[]
[]
[null,null,null,null,null,null,null,"Length","Amount ","€/m","NOTE"]
["Width:",null,null,null,null,null,null,"(mm)","pcs"]
["Typical lengths:",null,null," 2000, 3000, 4000, 5000 mm"]
[]
[]
[]
[]
["Flat sheets",null,null,null,null,null,null,"MATERIALS, COATINGS AND COLOURS"]
[null,null,null,"1500 mm",null,null,null,"Material thickness / material / coating / colour"]
[]
[]
[null,null,null,null,null,null,null,"Length","Amount ","€/m","NOTE"]
["Width:",null,null,null,null,null,null,"(mm)","pcs"]
["Typical lengths:",null,null,"2000, 3000, 4000, 5000 mm"]
[]
[]
[]
[]
["Flat sheets",null,null,null,null,null,null,"MATERIALS, COATINGS AND COLOURS"]
[null,null,null,null,null,null,null,"Material thickness / material / coating / colour"]
[]
[]
[null,null,null,null,null,null,null,"Length","Amount ","€/m","NOTE"]
["Width:",null,null,null,null,null,null,"(mm)","pcs"]
["Typical lengths:"]

{"sheet":"Translation","index":10,"n_rows":176,"n_cols":4,"rows_kept":176,"cut":false,"hidden":true,"merged":[]}
["ID","English","Suomi","Polska"]
[2,"ORDER FORM","TILAUSKAAVAKE","FORMULARZ ZAMÓWIENIA"]
[3,"Language","Kieli","Jezyk"]
[4,"Ruukki SAP order no.","Ruukin SAP-tilausnumero","Ruukki SAP nr zamówienia"]
[5,"Date","Päivämäärä","Data"]
[6,"Send to:","Vastaanottaja","Wysłać do"]
[7,"Italic underlined = mandatory information","Kursivoitu alleviivattu = pakollinen tieto","kursywa podkreślona = informacje obowiązkowe"]
[8,"BUYER","ASIAKAS","KUPUJĄCY"]
[9,"SHIP-TO PARTY (DELIVERY ADDRESS)","TOIMITUSOSOITE (SHIP-TO PARTY)","ADRES DOSTAWY"]
[10,"SOLD-TO PARTY (BUYER)","TILAUSASIAKAS (SOLD-TO PARTY)","KUPUJĄCY"]
[11,"BILL-TO PARTY (INVOICING CUSTOMER)","LASKUTUSASIAKAS (BILL-TO PARTY)","DANE DO FAKTURY"]
[12,"Customer no.","Asiakasnumero","Nr klienta"]
[13,"Name","Nimi","Nazwa"]
[14,"Address","Osoite","Adres"]
[15,"Person","Henkilö","Nazwisko"]
[16,"Tel.","Puh.nro.","Tel."]
[17,"email","email","email"]
[18,"ORDER INFORMATION","TILAUSTIEDOT","INFO O ZAMÓWIENIU"]
[19,"Short project name (3-10 characters)","Projektin nimi","Krótka nazwa projektu (3-10 znaków)"]
[20,"PO no./ project","Tilausnumero/ Projekti","Nr i nazwa/ projekt"]
[21,"Wholesaler order nr","Tukkuliikkeen tilausnumero","Nr zamówienia klienta"]
[22,"Ruukki Sales ja CST person","Ruukin myyjä ja CST yhteyshenkilö","Handlowiec i pracownik obsługi klienta CST"]
[23,"Billing fee","Laskutuspalkkio","Opłata rozliczeniowa"]
[24,"Extra order","Lisätilaus","Dodatkowe zamówienie"]
[25,"Original Ruukki SAP order no.","Alkuperäinen Ruukin SAP-tilausnumero","Originalny numer zamówienia Ruukki SAP."]
[26,"Project-specific material ordered","Projektikohtainen raaka-aine tilattu","Zamówienie specjalne materiału"]
[27]
[28,"Additional info","Lisätietoja","Dodatkowe informacje"]
[29,"TERMS","EHDOT","WARUNKI"]
[30,"Delivery term","Toimitusehto","Warunki dostawy"]
[31,"Place:","Paikka:","Miejsce:"]
[32,"Extra charges","Lisämaksut","Dodatkowe opłaty"]
[33,"Insurance","Vakuutus","Ubezpieczenie"]
[34,"Package","Pakkaus","Pakowanie"]
[35,"Price","Hinta","Cena"]
[36,"Freight","Rahti","Transport"]
[37,"Other","Muu","Inne"]
[38,"ATTACHED PRIMO AND ACCESSORY SPECIFICATIONS","LIITTEENÄ PRIMO KASETTI-JA TARVIKE-ERITTELYT","ZAŁĄCZONE SPECYFIKACJE KASETONÓW I AKCESORIÓW"]
[39]
[40,"(pcs)","(kpl.)","(szt.)"]
[41,"pcs","kpl.","szt."]
[42,"NOTE","HUOM.","UWAGI"]
[43,"No","Ei","Nie"]
[44,"Original Ruukki order nr.","Alkuperäinen Ruukin tilausnumero","Originalny numer zamówienia Ruukki"]
[45,"Amount (pcs)","Määrä (kpl)","Ilość (szt.)"]
[46,"Amount (m²)","Määrä (m²)","Ilość (m²)"]
[47,"Order date","Tilauspäivämäärä","Data zamówienia"]
[48,"Fitting order to follow","Lisätilaus tulossa","Dodatkowe zamówienie"]
[49,"Estimated date","Arviotu päivämäärä","Szacowana data"]
[50,"Yes","Kyllä","Tak"]
[51,"FCA (Pick-up)","FCA (Nouto)","FCA (odbiór własny)"]
[52,"DAP (Factory transport)","DAP (Tehtaan kuljetus)","DAP (transport z wytwórni na miejsce)"]
[53,"Horizontal brick pattern","Vaakasuuntainen tiilikuvio","Poziomy wzór cegły"]
[54,"Vertical brick pattern","Pystysuuntainen tiilikuvio","Pionowy wzór cegły"]
[55,"Make sure to send panel fastening hole pattern as a separate drawing","Muista lähettää kiinnitysreikäohje erillisenä piirustuksena","Pamiętaj, aby wysłać wzór otworowania do mocowania kasetonu jako osobny rysunek"]
[56,"Standard hole pattern","Vakio kiinnitysreikäjako","Standardowe otworowanie"]
[57,"Custom hole pattern","Tilauskohtainen kiinnitysreikäjako","Niestandardowe otworowanie"]
[58,"Fastening holes","Kiinnitysreiät","Otwory mocujące"]
[59,"Add into NOTE box a:b:c:d. Perforation options can be seen on the right","Lisää HUOM.-sarakkeeseen mitat a;b;c;d. Perforointivaihtoehdot kaavakkeen oikealla puolella","Dodać w uwagach wymiary a,b,c,d. Opcje perforacji można zobaczyć po prawej stronie"]
[60,"Make sure to send art peforation as a separate drawing","Muista lähettää piirustukset kuvioperforoinnista erillisessä piirustuksessa","Pamiętaj, aby wysłać perforację artystyczną jako oddzielny rysunek"]
[61,"Perforation options","Rei'itys vaihtoehdot","Opcje perforacji"]
[62,"Symmetrical perforation","Tasainen rei'itys","Symetryczna perforacja"]
[63,"Art perforation","Kuviorei'itys","Perforacja artystyczna"]
[64,"Lamella specification","Kasettierittely","Specyfikacja paneli"]
[65,"Basic Lamella","Peruslamellit","Panel podstawowy"]
[66,"Corner Lamella","Nurkkalamellit","Panel narożny"]
[67,"Special Lamella","Erikoislamellit","Panel specjalny"]
[68,"Support studs","Koolausrangat","Montażowe"]
[69,"Other support studs","Muut koolausrangat","Inne profile montażowe"]
[70,"Flashings","Listat","Obróbki"]
[71,"Special flashings","Erikoislistat","Obróbki specjalne"]
[72,"Screws and other acc.","Ruuvit, muut tarvikkeet","Wkręty i inne akcesoria"]
[73,"Flat sheets","Arkit","Blacha płaska"]
[74,"Fitting order","Lisätilaus","Zamówienie uzupełniające"]
[75,"Booking","Varaus","Reserwacja"]
[76,"<Select option>","<Valitse vaihto-ehto>","<Wybierz opcję>"]
[77,"Price €/m²","Hinta €/m²","Cena €/m²"]
[78,"Brick pattern","Tiilikuvio","Wzór w cegłę"]
[79,"Material","Materiaalit","Materiał"]
[80,"Colour","Värit","Kolor"]
[81,"Mixed brick pattern","Sekalainen tiilikuvio","Mieszany wzór cegły"]
[82,"No perforation","Ei rei'itystä","Bez perforacji"]
[83,"ITEM","RIVI","POZ."]
[84,"Dv right","Dv oikea","Dv prawej"]
[85,"Dv left","Dv vasen","Dv levej"]
[86,"Dh up","Dh ylä","Dh górny"]
[87,"Dh down","Dh ala","Dh niższy"]
[88,"Part ID","Osa ID","Część ID"]
[89,"Sizes","Kokorajat","Rozmiary"]
[90,"For further info please refer to product size table","Lisätietoa tarvittaessa, viittaa tuotteen mittataulukkoon","Więcej informacji można znaleźć w tabeli rozmiarów produktu"]
[91,"Amount ","Määrä","Ilość"]
[92,"Order form cover page","Tilauskaavakkeen pääsivu","Formularz Zamowienia - okladka"]
[93,"Horizontal panel max","Vaakasuuntaisen kasetin maksimimitta","Maksymalny wymiar panela w poziomie"]
[94,"Vertical panel max","Pystysuuntaisen kasetin maksimitta","Maksymalny wymiar panela w pionie"]
[95,"Steel","Teräs","Stal"]
[96,"Standard","Standard","Standard"]
[97,"Matt","Matta","Matowy"]
[98,"Metallic","Metallisävy","Metaliczny"]
[99,"Epoxy+PP","Epoksi+pulverimaalaus","Epoksy+PP"]
[100,"Other material, thickness, colour","Muu materiaali, ainevahvuus, väri","Inny materiał, grubość, kolor"]
[101,"Thickness","Ainevahvuus","Thickness"]
[102,"Zinc","Kuumasinkitty","Ocynk"]
[103,"Specify colour:","Määritä väri:","Określ kolor"]
[104,"Length","Pituus","Długość"]
[105,"MATERIALS, COATINGS AND COLOURS","MATERIAALIT, PINNOITTEET JA VÄRIT","MATERIAŁ, POWŁOKI I KOLORY"]
[106,"Screws and other acc.","Ruuvit, muut tarvikkeet","Wkręty i inne akcesoria"]
[107,"Package size:","Pakkauskoko:","Wielkość paczki:"]
[108,"Other accessory","Muut tarvikkeet","Inne akcesoria"]
[109,"Material thickness / material / coating / colour","Materiaalin vahvuus / materiaali / pinnoite / väri","Grubość materiału / materiał / powłoka / kolor"]
[110,"Part nr","Osa nro","Część nr"]
[111,"Bright","Kirkas","Jasny"]
[112,"Internal corner flashing","Sisänurkkalista","Obróbka wewnętrznego narożnika"]
[113,"Cover flashing","Suojalista","Obróbki maskujące"]
[114,"External corner flashing","Ulkonurkkalista","Obróbka zewnętrznego narożnika"]
[115,"Add the dimensions marked with letters into the notes","Lisää merkinnät kirjaimilla mitat","Dodaj wymiary oznaczone literami w uwagach"]
[116,"Flat sheet","Arkki","Blacha płaska"]
[117,"Typical lengths:","Tyypillinen pituus:","Typowa długość:"]
[118,"Width:","Leveys:","Szerokość:"]
[119,"Other flashings","Muut vakiolistat","Inne obróbki"]
[120,"st. fillet","aloituslista","prof. startowy"]
[121,"Starting fillet & oth. fl.","Aloitus- ja muut vakiolistat","Profile startowe i inne"]
[122,"Support bracket","Koolausrangan liitoskappale","Wspornik"]
[123,"Starting fillet","Aloituslista","Profil startowy"]
[124,"Steel stainless","Ruostumaton teräs","Stal nierdzewna"]
[125,"bracket","liitoskappale","wspornik"]
[126,"Coating","Pinnoite","Powłoka"]
[127,"Main order","Päätilaus","Zamówienie główne"]
[128,"No brick pattern","Ei tiilikuviota","Bez wzoru w cegłę"]
[129,"Accessory specification","Tarvike-erittlyt","Specyfikacja akcesoriów"]
[130,"Aluminium","Alumiini","Aluminium"]
[131,"Different colour or material","Eri väri tai materiaali","Inny kolor lub materiał"]
[132,"Same as panel","Sama kuin paneeli","Taki sam jak panel"]
[133,"Other flashing","Muut tarvikkeet","Obróbki inne"]
[134,"Show","Näytä","Pokaż"]
[135,"Hide","Piilota","Ukryj"]
[136,"Add sheet","Lisää sivu","Dodaj arkusz"]
[137,"Not available","Ei saatavilla","Nie dostępne"]
[138,"Rivet","Niitti","Nit"]
[139,"Screw","Ruuvit","Wkręt"]
[140,"Horizontal joint colour","Vaakasauman väri","Kolor fugi w poziomie"]
[141,"Different colour","Eri väri","Inny kolor"]
[142,"Material not selected for basic panel!","Raaka-ainetta ei ole valittu peruskasetille","Materiał nie wybrany dla panelu podstawowego!"]
[143,"Fastening type","Kiinnikkeen tyyppi","Sposób mocowania"]
[144,"Concealed fixing","Piilokiinnitys","Ukryte mocowanie"]
[145,"Replaceable panel","Vaihdettava kasetti","Panel wymienny"]
[146,"Select product","Valitse tuote","Wybierz panel"]
[147,"Special","Erikois","Specjalny"]
[148,"Select sheet","Valitse arkki","Wybierz arkusz"]
[149,"Support brackets","Kiinnityspala","Wspornik"]
[150,"No fastening holes","Ei kiinnitysreikiä","Bez otworów"]
[151,"Support stud","Kiinnitysorsi","Ruszt"]
[152,"Add 5 rows","Lisää 5 riviä","Dodaj 5 wierszy"]
[153,"Delete 5 rows","Poista 5 riviä","Usuń 5 wierszy"]
[154,"Select product to continue","Valitse tuote jatkaaksesi","Wybierz produkt, aby kontynuować"]
[155,"Please use the button below to create a macro-free workbook to send to Ruukki","Vie makrovapaa versio","Eksportuj wersję bez makr"]
[156,"Natural","Luonnon","Naturalny"]
[157,"Export macro-free version","Vie makrovapaa versio","Eksportuj wersję bez makr"]
[158,"Vertical j. flashings","Pystysaumalistat","Obróbki stykowe pio."]
[159,"Vertical joint flashings","Pystysaumalistat","Obróbki stykowe pionowe"]
[160,"Vertical joint flashing","Pystysaumalista","Obróbka stykowe pionowe"]
[161,"Joint piece","Jatkopala","Adapter"]
[162,"Separating piece EPDM","Erotinkumi EPDM","EPDM"]
[163,"Separating strip EPDM","Erotinnauha EPDM","EPDM"]
[164,"Gloss","Kiilto","Glosa"]
[165,"Packing info","Pakkaustiedot","Info o pakowaniu"]
[166,"Type","Tyypi","Typ"]
[167,"matt","matta","matowy"]
[168,"metallic","metallisävy","metaliczny"]
[169,"Other:","Muu:","Inne:"]
[170,"Example","Esimerkki","Przykład"]
[171]
[172]
[173]
[174]
[175]
[176,"Part ID conflict found!","Osanumero ristiriita löydetty!","Znaleziono konflikt numerów części!"]

{"sheet":"Data","index":11,"n_rows":45,"n_cols":354,"rows_kept":45,"cut":false,"hidden":true,"merged":[]}
["Current lang","Language",null,null,"TransOpt_tab","FitBook_tab","Material_tab",null,"Perfo_tab","Stud_mat","CoatingSt_tab","Studs_tab",null,null,null,null,null,null,null,null,null,null,null,null,null,null,null,null,null,null,null,null,null,null,null,null,null,null,null,null,null,null,null,null,null,null,null,null,null,null,null,null,null,null,null,null,null,null,null,null,null,null,null,null,null,null,null,null,null,null,null,null,null,null,null,null,null,null,null,null,null,null,null,null,null,null,null,null,null,null,null,null,null,null,null,null,null,null,null,null,null,null,null,null,null,null,null,null,null,null,null,null,null,null,null,null,null,null,null,null,null,null,null,null,null,null,null,null,null,null,null,null,null,null,null,null,null,null,null,null,null,null,null,null,null,null,null,null,null,null,null,null,null,null,null,null,null,null,null,null,null,null,null,null,null,null,null,null,null,null,null,null,null,null,null,null,null,null,null,null,null,null,null,null,null,null,null,null,null,null,null,null,null,null,null,null,null,null,null,null,null,null,null,null,null,null,null,null,null,null,null,null,null,null,null,null,null,null,null,null,null,null,null,null,null,null,null,null,null,null,null,null,null,null,null,null,null,null,null,null,null,null,null,null,null,null,null,null,null,null,null,null,null,null,null,null,null,null,null,null,null,null,null,null,null,null,null,null,null,null,null,null,null,null,null,null,null,null,null,null,null,null,null,null,null,null,null,null,null,null,null,null,null,null,null,null,null,null,null,null,null,null,null,null,null,null,null,null,null,null,null,null,null,null,null,null,null,null,null,null,null,null,null,null,null,null,null,null,null,null,null,null,null,null,null,null,null,null,null,null,null,null,null,null,null,null,null,null,null,null,null,"<Select option>",null,"<Select option>"]
[2,"English",null,null,"Other","Main order","<Select option>",null,"No perforation","<Select option>","<Select option>","Select product"]
["Prev lang","Suomi",null,null,"FCA (Pick-up)","Extra order","Steel 1,2 mm",null,"Symmetrical perforation","Steel 1,2 mm","Pural BT","CA1SS1"]
[4,"Polska",null,null,"DAP (Factory transport)","Booking","Aluminium 1,5 mm",null,"Art perforation","Aluminium 1,5 mm","Epoxy+PP","CA1SS2"]
[null,null,null,null,null,null,"Other",null,null,"Other material, thickness, colour",null,"CA1RS1"]
[null,null,null,null,null,null,null,null,null,null,"CoatingAl_tab","CA1SSC1"]
["▲▲▲",null,null,null,"YesNo_tab","Gloss_tbl",null,null,"Pattern_tab","StudMatPol_tab","<Select option>","Other"]
[null,null,null,null,"No","Standard",null,null,"No brick pattern","<Select option>","DG5000"]
[null,null,null,null,"Yes","Matt",null,null,"Horizontal brick pattern","Steel 1,2 mm","PP"]
[null,null,null,null,null,null,null,null,"Vertical brick pattern","Aluminium 1,5 mm","Natural"]
[null,null,null,null,null,null,"Accesories","CT accessories","Mixed brick pattern","Other material, thickness, colour"]
[null,null,"SheetList_tab",null,null,null,"S3H48022D02S4C","S3H60029D03S6B",null,"Zinc 1,5 mm","ColourHiarc_tab"]
[null,null,"Order form cover page",null,null,null,"S3H55022L02S4B","S3H65024L04BS6E","Hole_tab",null,"<Select option>"]
[null,null,"1 Basic Lamella",null,null,null,null,"CA3SP814","Standard hole pattern","FlashMat_tab","RR20"]
[null,null,"2 Corner Lamella",null,null,null,null,"CA3SE410","Custom hole pattern","<Select option>","RR21"]
[null,null,"3 Special Lamella",null,null,null,null,"CA3SE420","No fastening holes","Steel 0,6 mm","RR23"]
[null,null,"4 Support studs",null,null,null,null,null,null,"Aluminium 0,7 mm","RR33"]
[null,null,"5 Support brackets",null,null,null,null,null,null,"Other material, thickness, colour","RR40 metallic"]
[null,null,"6 Flashings",null,null,null,null,null,null,null,"RR41 metallic"]
[null,null,"7 Other flashings",null,null,"Starting Fillet","Corten","JP","Fastening holes","ProductSel_tab","RR42 metallic"]
[null,null,"8 Screws and other acc.",null,1,null,null,null,0,"Select product","RR45 metallic"]
[null,null,"9 Flat sheets",null,2,3,null,"P10",0,"Groove 10","RR979 Metallic copper"]
[null,null,null,null,3,3,null,"P20",0,"Groove 20","Other"]
[null,null,null,null,4,null,null,null,0,"Groove 30"]
[null,null,null,null,5,null,null,1,1,"Sharp 40"]
[null,null,null,null,6,4,null,2,1,"Sharp 45","Screw_col_type"]
[null,null,null,null,7,5,null,6,1,"Lap 60","<Select option>"]
[null,null,null,null,8,null,null,null,1,"Vertical 70","Standard"]
[null,null,null,null,9,7,null,8,1,"Straight 100","Matt"]
[null,null,null,null,10,8,1,null,1,"Cor-Ten 20","Metallic"]
[null,null,null,null,11,null,1,null,1,"Cor-Ten 30","Bright"]
[null,null,null,null,12,null,null,null,1,"Special Lamella"]
[null,null,null,null,13,null,1,null,1,"Special Cor-Ten"]
[]
["Sizes","Select","10","20","30","40","45","60","70","100","C20","C30"]
["Basic",null,"C = 40 mm","C = 40 mm","C = 40 mm","C = 40 mm","C = 40 mm","C = 40 mm","C = 20 mm","C = 30 mm","C = 40 mm","C = 40 mm"]
[null,null,"Amin, Bmin = 200 mm","Amin, Bmin = 200 mm","Amin, Bmin = 200 mm","Amin, Bmin = 200 mm","Amin, Bmin = 200 mm","Amin, Bmin = 200 mm","Amin, Bmin = 200 mm","Amin, Bmin = 200 mm","Amin, Bmin = 200 mm","Amin, Bmin = 200 mm"]
[null,null,"A max = 4000 mm, B max = 600 mm","A max = 4000 mm, B max = 600 mm","A max = 4000 mm, B max = 600 mm","A max = 3000 mm, B max = 600 mm","A max = 3000 mm, B max = 600 mm","A max = 3000 mm, B max = 600 mm","A max = 600 mm, B max = 3000 mm","A max = 3000 mm, B max = 600 mm","A max = 3000 mm, B max = 600 mm","A max = 3000 mm, B max = 600 mm"]
[]
["Corner",null,"C = 30 mm","C = 30 mm","C = 30 mm","C = 30 mm","C = 30 mm","C = 30 mm","C = 20 mm","C = 30 mm","C = 30 mm","C = 30 mm"]
[null,null,"Amin, Bmin = 200 mm","Amin, Bmin = 200 mm","Amin, Bmin = 200 mm","Amin, Bmin = 200 mm","Amin, Bmin = 200 mm","Amin, Bmin = 200 mm","Amin, Bmin = 200 mm","Amin, Bmin = 200 mm","Amin, Bmin = 200 mm","Amin, Bmin = 200 mm"]
[null,null,"A max = 4000 mm, B max = 600 mm","A max = 4000 mm, B max = 600 mm","A max = 4000 mm, B max = 600 mm","A max = 3000 mm, B max = 600 mm","A max = 3000 mm, B max = 600 mm","A max = 3000 mm, B max = 600 mm","A max = 600 mm, B max = 3000 mm","A max = 3000 mm, B max = 600 mm","A max = 3000 mm, B max = 600 mm","A max = 3000 mm, B max = 600 mm"]
["Special"]
[null,null,"Amin, Bmin = 200 mm","Amin, Bmin = 200 mm","Amin, Bmin = 200 mm","Amin, Bmin = 200 mm","Amin, Bmin = 200 mm","Amin, Bmin = 200 mm","Amin, Bmin = 200 mm","Amin, Bmin = 200 mm","Amin, Bmin = 200 mm","Amin, Bmin = 200 mm"]
[null,null,"Max = 1250x4000 mm, 1400x3000","Max = 1250x4000 mm, 1400x3000","Max = 1250x4000 mm, 1400x3000","Max = 1400x3000","Max = 1400x3000","Max = 1400x3000","Max = 1400x3000","Max = 1400x3000","Max = 1400x3000","Max = 1400x3000"]